lending/lending_fUSD_20241113
["ID","MTS","AMOUNT","RATE_DAILY","PERIOD"]
[342113520,1731459043073,-150.0,0.00014738,2]
[342113521,1731459043083,-150.0,0.00014755,2]
[342113522,1731459043092,-150.0,0.00014781,2]
[342113523,1731459043101,-150.0,0.00014812,2]
[342113524,1731459043111,-216.15870552,0.00014847,2]
[342113525,1731459043120,-150.0,0.00014896,2]
[342113526,1731459043129,-150.0,0.00014899,2]
[342113527,1731459043137,-150.0,0.00014911,2]
[342113528,1731459043149,-150.0,0.0001493,2]
[342113529,1731459043159,-150.0,0.00014939,2]
[342113530,1731459043168,-150.0,0.00014949,2]
[342113531,1731459043177,-150.0,0.00014976,2]
[342113532,1731459043186,-150.0,0.00014977,2]
[342113533,1731459043195,-500.0,0.00014999,2]
[342113534,1731459043204,-44862.12508786,0.00015,2]
[342113555,1731459046143,-400.0,0.000136,2]
[342113556,1731459046154,-195.378877,0.00014886,2]
[342113557,1731459046164,-195.378877,0.000149,2]
[342113558,1731459046173,-195.378877,0.000149,2]
[342113559,1731459046183,-179.22684178,0.00014999,2]
[342113560,1731459046192,-500.0,0.00014999,2]
[342113561,1731459046202,-1008.74550896,0.00014999,2]
[342113562,1731459046269,-366.99301616,0.00014999,2]
[342113563,1731459046278,-3894.60572944,0.00015,2]
[342113564,1731459046574,-5901.05418163,0.00015,2]
[342113565,1731459048448,-3000.00068778,0.000139,2]
[342113566,1731459048466,-44162.11799998,0.000139,2]
[342113567,1731459048511,-4431.06091224,0.000139,2]
[342113568,1731459048521,-158.82650506,0.000149,2]
[342113569,1731459048530,-195.378877,0.00014948,2]
[342113570,1731459048540,-195.378877,0.00014987,2]
[342113571,1731459048549,-195.378877,0.0001499,2]
[342113572,1731459048559,-195.378877,0.00014999,2]
[342113573,1731459048568,-1130.59707468,0.00015,2]
[342113574,1731459048587,-1100.47524975,0.00015,2]
[342113575,1731459048598,-5964.44647046,0.00015,2]
[342113576,1731459048623,-8966.06194617,0.00015,2]
[342113577,1731459048635,-15409.26312,0.00015,2]
[342113578,1731459048647,-57880.645,0.00015,2]
[342113579,1731459048663,-57661.65819,0.00015,2]
[342113582,1731459740985,463.79,0.00011163,2]
[342113583,1731459950267,-1080.76665529,0.0001307,2]
[342113584,1731460026109,-181.48047977,0.00012987,2]
[342113585,1731460026130,-514.64726897,0.00013018,2]
[342113589,1731460150959,1450.0,0.00012,2]
[342113599,1731460233281,-825.3617,0.00012918,2]
[342113600,1731460233291,-198.16535,0.00012968,2]
[342113601,1731460233302,-272.04465,0.00012968,2]
[342113602,1731460233311,-250.0,0.00012968,2]
[342113603,1731460233321,-1000.0,0.00012973,2]
[342113604,1731460233330,-799.87813056,0.00012975,2]
[342113605,1731460233342,-112.04186944,0.00012975,2]
[342113606,1731460233351,-1516.07,0.00012996,2]
[342113607,1731460233361,-620.14,0.00013004,2]
[342113608,1731460233370,-1840.02891541,0.0001301,2]
[342113609,1731460233767,-12.39108459,0.0001301,2]
[342113610,1731460233776,-299.59657092,0.00013017,2]
[342113611,1731460233855,-0.40342908,0.00013017,2]
[342113612,1731460233865,-12099.33273103,0.00013018,2]
[342113613,1731460233875,-250.0,0.00013027,2]
[342113614,1731460233884,-419.23334471,0.0001307,2]
[342113615,1731460233894,-223.5,0.00013094,2]
[342113616,1731460233903,-459.9,0.00013094,2]
[342113617,1731460233912,-509.62,0.00013094,2]
[342113618,1731460233922,-556.19,0.00013097,2]
[342113619,1731460233932,-250.0,0.00013099,2]
[342113620,1731460233942,-1944.05,0.00013131,2]
[342113621,1731460233951,-269.9,0.00013145,2]
[342113622,1731460233960,-150.0,0.00013287,2]
[342113623,1731460233969,-463.79,0.00013427,2]
[342113624,1731460233979,-164.85,0.00013484,2]
[342113625,1731460233988,-188.9,0.0001357,2]
[342113626,1731460233997,-188.9,0.00013574,2]
[342113627,1731460234006,-188.9,0.00013578,2]
[342113628,1731460234021,-188.9,0.00013581,2]
[342113629,1731460234030,-188.9,0.00013585,2]
[342113630,1731460234040,-188.9,0.00013588,2]
[342113631,1731460234049,-188.9,0.00013592,2]
[342113632,1731460234059,-150.0,0.00013595,2]
[342113633,1731460234068,-188.9,0.00013595,2]
[342113634,1731460234077,-188.9,0.00013599,2]
[342113635,1731460234088,-188.9,0.00013603,2]
[342113636,1731460234097,-188.9,0.00013606,2]
[342113637,1731460234107,-188.9,0.0001361,2]
[342113638,1731460234117,-831.44479858,0.00013612,2]
[342113639,1731460234129,-168.55520142,0.00013612,2]
[342113640,1731460234138,-188.9,0.00013613,2]
[342113641,1731460234147,-1311.72364971,0.00013613,2]
[342113642,1731460234158,-2286.79370162,0.00013613,2]
[342113648,1731460238485,-27854.99764867,0.00013613,2]
[342113649,1731460238495,-188.9,0.00013617,2]
[342113650,1731460238504,-188.9,0.0001362,2]
[342113651,1731460238514,-188.9,0.00013624,2]
[342113652,1731460238527,-188.9,0.00013627,2]
[342113653,1731460238536,-188.9,0.00013631,2]
[342113654,1731460238545,-188.9,0.00013635,2]
[342113655,1731460238555,-188.9,0.00013638,2]
[342113656,1731460238564,-200.0,0.00013699,2]
[342113657,1731460238574,-375.0,0.000137,2]
[342113658,1731460238584,-1157.36,0.00013741,2]
[342113659,1731460238593,-167.13,0.00013794,2]
[342113660,1731460238603,-269.9,0.00013802,2]
[342113661,1731460238611,-1000.0,0.00013899,2]
[342113662,1731460238621,-43105.7286,0.000139,2]
[342113663,1731460238630,-5664.2473,0.000139,2]
[342113664,1731460238639,-598.605,0.000139,2]
[342113665,1731460238649,-400.0,0.000139,2]
[342113666,1731460238658,-310.0,0.00014,2]
[342113667,1731460238667,-1500.0,0.00014,2]
[342113668,1731460238677,-433.11,0.00014192,2]
[342113669,1731460238686,-150.0,0.00014192,2]
[342113670,1731460238696,-362.27,0.00014192,2]
[342113671,1731460238704,-433.11,0.00014192,2]
[342113672,1731460238714,-362.27,0.00014192,2]
[342113673,1731460238723,-433.11,0.00014192,2]
[342113674,1731460238732,-361.6,0.00014192,2]
[342113675,1731460238741,-432.87,0.00014192,2]
[342113676,1731460238751,-150.0,0.00014252,2]
[342113677,1731460238760,-3243.059,0.00014269,2]
[342113678,1731460238772,-814.0,0.00014269,2]
[342113679,1731460238782,-420.0,0.00014275,2]
[342113680,1731460238790,-150.0,0.00014326,2]
[342113681,1731460238800,-153.23,0.00014366,2]
[342113682,1731460238809,-269.9,0.00014459,2]
[342113683,1731460238818,-1000.0,0.00014594,2]
[342113684,1731460238828,-164.85,0.00014597,2]
[342113685,1731460238837,-400.0,0.000147,5]
[342113686,1731460238847,-255.0,0.0001471,2]
[342113687,1731460238856,-1745.0,0.00014795,2]
[342113688,1731460238865,-2139.8294,0.0001485,2]
[342113689,1731460238874,-925.571,0.00014872,2]
[342113690,1731460238883,-161.84805596,0.00014872,2]
[342113691,1731460238892,-200.0,0.0001488,2]
[342113692,1731460238902,-161.15396717,0.00014898,2]
[342113693,1731460238914,-161.15396717,0.00014898,2]
[342113694,1731460238925,-161.15396717,0.00014899,2]
[342113695,1731460238938,-161.15396717,0.00014899,2]
[342113696,1731460238947,-161.15396717,0.000149,2]
[342113697,1731460238956,-5800.0,0.000149,2]
[342113698,1731460238965,-177.9294839,0.000149,2]
[342113699,1731460238974,-3428.3143,0.000149,2]
[342113700,1731460238983,-161.15396717,0.000149,2]
[342113701,1731460238992,-1942.83190416,0.000149,2]
[342113702,1731460239001,-351597.53001032,0.0001497,2]
[342113703,1731460239010,-1300.0,0.00014972,2]
[342113704,1731460239022,-1400.0,0.00014972,2]
[342113705,1731460239031,-700.0,0.00014972,2]
[342113706,1731460239040,-322.49134695,0.00014973,2]
[342113707,1731460239049,-501.58054155,0.00014973,2]
[342113708,1731460239058,-51608.30715286,0.0001498,2]
[342113709,1731460239068,-857596.59528557,0.0001499,2]
[342113710,1731460239080,-840.1800908,0.0001499,2]
[342113711,1731460239091,-3774.17959658,0.0001499,2]
[342113712,1731460239158,-402.30263251,0.0001499,2]
[342113713,1731460239188,-2000.0,0.0001499,2]
[342113714,1731460239199,-5940.34185658,0.0001499,2]
[342113715,1731460239345,-2903.78411202,0.0001499,2]
[342113717,1731460241297,-1009.77922704,0.0001499,2]
[342113718,1731460241313,-3973.89993116,0.0001499,2]
[342113719,1731460241331,-1820.1546321,0.0001499,2]
[342113720,1731460241347,-88311.31253604,0.0001499,2]
[342113721,1731460241364,-794.97575946,0.0001499,2]
[342113722,1731460241380,-592.3,0.0001499,2]
[342113723,1731460241669,-418.36137229,0.00014583,2]
[342113724,1731460241685,-3133.7341677,0.0001499,2]
[342113726,1731460244738,-165.15042578,0.00014989,2]
[342113727,1731460244748,-495.23207422,0.00014989,2]
[342113728,1731460244759,-4.76792578,0.00014989,2]
[342113729,1731460244768,-500.0,0.00014989,2]
[342113730,1731460244782,-170.72703301,0.00014989,2]
[342113731,1731460244791,-500.0,0.00014989,2]
[342113732,1731460244801,-500.0,0.00014989,2]
[342113733,1731460244810,-500.0,0.00014989,2]
[342113734,1731460244821,-500.0,0.00014989,2]
[342113735,1731460244831,-500.0,0.00014989,2]
[342113736,1731460244840,-500.0,0.00014989,2]
[342113737,1731460244849,-758.3484108,0.0001499,2]
[342113738,1731460244903,-4266.44109992,0.0001499,2]
[342113739,1731460244915,-6021.01515,0.0001499,2]
[342113740,1731460246668,-2825.3261,0.0001499,2]
[342113772,1731460570382,440.6,0.00012008,2]
[342113774,1731461213837,11556.0,0.000119,5]
[342113775,1731461214066,11556.0,0.000116,3]
[342113776,1731461214313,854.84094075,0.000113,2]
[342113777,1731461214340,55095.59533128,0.000113,2]
[342113778,1731461214370,417809.56372797,0.000113,2]
[342113779,1731461221578,-10813.0,0.0001238,2]
[342113780,1731461239543,-150.0,0.00012379,2]
[342113781,1731461239574,-300.0,0.00012379,2]
[342113782,1731461239598,-1489.49495649,0.0001238,2]
[342113806,1731461360850,-300.0,0.00012379,2]
[342113807,1731461360873,-2961.71146,0.0001238,2]
[342113808,1731461363097,-34685.09815276,0.0001238,2]
[342113809,1731461368133,-5066.22057437,0.0001238,2]
[342113810,1731461369657,-15539.21994577,0.0001238,2]
[342113812,1731461394264,165.96988889,0.0001153,2]
[342113813,1731461394289,165.96988889,0.0001153,2]
[342113814,1731461394310,86.63022222,0.0001153,2]
[342113831,1731461431563,-6240.64769441,0.0001238,2]
[342113832,1731461431572,-2620.76665372,0.0001298,2]
[342113833,1731461431927,-1488.29368655,0.0001298,2]
[342113834,1731461431940,-823.73,0.0001298,2]
[342113835,1731461432011,-38833.10635072,0.0001298,2]
[342113836,1731461432022,-5403.94524399,0.0001298,2]
[342113837,1731461432033,-15016.46998079,0.0001298,2]
[342113845,1731461437991,-1043.5,0.0001298,2]
[342113846,1731461438091,-932.95413909,0.0001298,2]
[342113847,1731461438103,-3437.93421433,0.0001298,2]
[342113849,1731461438213,-1236887.79905081,0.0001298,2]
[342113851,1731461438222,-150.0,0.00012999,2]
[342113852,1731461438232,-112218.066302,0.00013,2]
[342113853,1731461438241,-2083.35,0.0001343,2]
[342113854,1731461438251,-250.0,0.00013442,2]
[342113855,1731461438261,-1500.0,0.00013444,2]
[342113856,1731461438270,-1458.84631517,0.000137,2]
[342113857,1731461438280,-402.27,0.00013755,2]
[342113858,1731461438289,-278.09,0.00013777,2]
[342113859,1731461438299,-418.57,0.00013794,2]
[342113860,1731461438309,-150.0,0.00013829,2]
[342113861,1731461438318,-1000.0,0.00013863,2]
[342113862,1731461438328,-250.0,0.00013873,2]
[342113863,1731461438338,-299.99,0.00013873,2]
[342113864,1731461438347,-250.0,0.00013886,2]
[342113865,1731461438357,-28035.03102597,0.00014,2]
[342113866,1731461438367,-167.13,0.00014001,2]
[342113867,1731461438376,-255.0,0.00014104,2]
[342113868,1731461438386,-155.11,0.00014118,2]
[342113869,1731461438396,-397.73,0.00014134,2]
[342113870,1731461438405,-361.24195883,0.00014418,2]
[342113871,1731461438414,-185.11,0.00014421,2]
[342113872,1731461438423,-361.24195883,0.00014487,2]
[342113873,1731461438434,-119856.81073981,0.000145,3]
[342113874,1731461438443,-509.109,0.00014518,2]
[342113875,1731461438460,-150.128,0.00014518,2]
[342113876,1731461438470,-151.337,0.00014518,2]
[342113877,1731461438479,-631.0,0.00014518,2]
[342113878,1731461438489,-12006.348,0.00014518,2]
[342113879,1731461438498,-361.24195883,0.00014556,2]
[342113880,1731461438507,-361.24195883,0.00014625,2]
[342113881,1731461438517,-361.24195883,0.00014693,2]
[342113882,1731461438526,-361.24195883,0.00014762,2]
[342113883,1731461438535,-417.5350584,0.00014779,2]
[342113884,1731461438545,-150.0,0.00014782,2]
[342113885,1731461438554,-1745.0,0.00014795,2]
[342113886,1731461438565,-559.13030045,0.000148,2]
[342113887,1731461438574,-150.0,0.00014823,2]
[342113888,1731461438584,-155.11,0.00014824,2]
[342113889,1731461438593,-361.24195883,0.00014831,2]
[342113890,1731461438603,-150.0,0.00014837,2]
[342113891,1731461438613,-1500.0,0.0001484,2]
[342113892,1731461438623,-150.0,0.0001484,2]
[342113893,1731461438632,-39024.0,0.0001484,2]
[342113894,1731461438641,-150.0,0.00014844,2]
[342113895,1731461438651,-1860.2427,0.0001488,2]
[342113896,1731461438661,-8352.386,0.0001488,2]
[342113897,1731461438671,-150.0,0.00014884,2]
[342113898,1731461438680,-262.65,0.0001489,2]
[342113899,1731461438690,-14810.1256,0.0001489,2]
[342113900,1731461438702,-3916.1436,0.0001489,2]
[342113901,1731461438712,-3428.3143,0.0001489,2]
[342113902,1731461438722,-215.09388483,0.0001489,2]
[342113903,1731461438732,-171.8289,0.0001489,2]
[342113904,1731461438742,-564.8520369,0.0001489,2]
[342113905,1731461438751,-1052.373,0.00014891,2]
[342113906,1731461438761,-171.8289,0.00014893,2]
[342113907,1731461438770,-564.85203688,0.00014895,2]
[342113908,1731461438780,-171.8289,0.00014897,2]
[342113909,1731461438790,-163.21837346,0.000149,2]
[342113910,1731461438799,-215.09388483,0.000149,2]
[342113911,1731461438809,-171.8289,0.000149,2]
[342113912,1731461438819,-361.24195883,0.000149,2]
[342113913,1731461438828,-1000.0,0.000149,2]
[342113914,1731461438837,-564.85203688,0.000149,2]
[342113915,1731461438846,-150.0,0.00014921,2]
[342113916,1731461438856,-150.0,0.00014942,2]
[342113917,1731461438865,-150.0,0.00014948,2]
[342113918,1731461438879,-5420.0,0.0001495,2]
[342113919,1731461438888,-177.30645593,0.0001496,2]
[342113920,1731461438897,-3187.88732942,0.0001497,2]
[342113921,1731461438908,-126040.85017377,0.0001497,2]
[342113925,1731461440003,-256.45423774,0.0001497,2]
[342113926,1731461440014,-486.06072121,0.0001497,2]
[342113927,1731461440025,-12745.69763446,0.0001497,2]
[342113928,1731461440036,-499.7582014,0.0001497,2]
[342113929,1731461440046,-3087.6941989,0.0001497,2]
[342113930,1731461440057,-16404.48466264,0.0001497,2]
[342113947,1731461443065,-150.0,0.00013606,2]
[342113949,1731461443074,-38726.00189575,0.0001497,2]
[342113970,1731461443256,-2647.83041424,0.0001497,2]
[342114029,1731461446557,-16750.93417627,0.000136,2]
[342114030,1731461446570,-7811.26482278,0.000136,2]
[342114031,1731461446675,-281.75732356,0.000136,2]
[342114032,1731461446688,-1731.58607739,0.000136,2]
[342114033,1731461446697,-151.46389565,0.00014729,2]
[342114034,1731461446707,-150.0,0.00014759,2]
[342114035,1731461446724,-150.0,0.00014819,2]
[342114036,1731461446734,-150.0,0.00014827,2]
[342114037,1731461446746,-150.0,0.00014835,2]
[342114038,1731461446756,-150.72553737,0.00014849,2]
[342114039,1731461446767,-150.0,0.00014885,2]
[342114040,1731461446777,-150.0,0.00014934,2]
[342114041,1731461446787,-254.11181901,0.0001497,2]
[342114042,1731461446799,-2387.55597132,0.0001497,2]
[342114044,1731461602175,800.0,0.00021,30]
[342114046,1731461947483,10396.0,0.00021,30]
[342114047,1731461976406,161.31911112,0.00012,2]
[342114048,1731461976426,161.31911112,0.00012,2]
[342114049,1731461976445,161.31911112,0.00012,2]
[342114050,1731461976465,161.31911112,0.00012,2]
[342114051,1731461976484,161.31911112,0.00012,2]
[342114052,1731461976504,161.31911112,0.00012,2]
[342114053,1731461976524,161.31911112,0.00012,2]
[342114054,1731461976544,161.31911112,0.00012,2]
[342114055,1731461976565,159.44711104,0.00012,2]
[342114056,1731462002464,151.29486249,0.00012,2]
[342114057,1731462205200,150.0,0.00011813,2]
[342114058,1731462205221,150.0,0.00011813,2]
[342114059,1731462205241,147.69,0.00011813,2]
[342114060,1731462226068,158.172,0.0001888,30]
[342114061,1731462289162,-160.86,0.00014215,7]
[342114062,1731462289216,-14.14,0.00014967,7]
[342114063,1731462335563,-158.129,0.0001298,2]
[342114064,1731462335585,-479.70762241,0.00013599,2]
[342114065,1731462397499,-230.56442865,0.00013688,2]
[342114066,1731462438511,-331.78261109,0.00013599,2]
[342114067,1731462438534,-377.61,0.00013673,2]
[342114068,1731462438555,-130.35557135,0.00013688,2]
[342114069,1731462438576,-200.0,0.00013699,2]
[342114070,1731462438598,-5704.06327586,0.00013699,2]
[342114132,1731462632820,-250.0,0.00013681,2]
[342114134,1731462632830,-157.898613,0.00013698,2]
[342114136,1731462632840,-157.898613,0.00013698,2]
[342114138,1731462632849,-157.898613,0.00013698,2]
[342114140,1731462632859,-157.898613,0.00013698,2]
[342114142,1731462632868,-1419.49672414,0.00013699,2]
[342114144,1731462632877,-170.55,0.00013701,2]
[342114146,1731462632890,-1500.0,0.00013709,2]
[342114148,1731462632899,-1000.0,0.00013709,2]
[342114150,1731462632909,-181.24,0.00013726,2]
[342114152,1731462632918,-250.0,0.00013731,2]
[342114154,1731462632927,-478.18,0.0001375,2]
[342114156,1731462632936,-150.0,0.00013781,2]
[342114158,1731462632945,-150.0,0.00013801,2]
[342114178,1731462633180,-223.06,0.00013802,2]
[342114179,1731462633191,-250.0,0.00013803,2]
[342114180,1731462633200,-472.62140559,0.00013833,2]
[342114181,1731462633212,-56.66859441,0.00013833,2]
[342114182,1731462633221,-923.0776,0.00013879,2]
[342114183,1731462633230,-3343.677,0.000139,2]
[342114184,1731462633240,-1500.0,0.00014,2]
[342114185,1731462633252,-447.69,0.00014077,2]
[342114186,1731462633261,-150.0,0.00014191,2]
[342114188,1731462633270,-85.71231072,0.00014192,2]
[342114209,1731462633458,-64.51768928,0.00014192,2]
[342114211,1731462633468,-433.11,0.00014192,2]
[342114213,1731462633477,-366.46,0.00014192,2]
[342114215,1731462633486,-170.37758186,0.00014192,2]
[342114217,1731462633498,-262.73241814,0.00014192,2]
[342114219,1731462633508,-362.27,0.00014192,2]
[342114221,1731462633518,-74.99758186,0.00014192,2]
[342114223,1731462633529,-358.11241814,0.00014192,2]
[342114225,1731462633539,-361.6,0.00014192,2]
[342114227,1731462633548,-432.87,0.00014192,2]
[342114229,1731462633557,-166.5,0.00014266,2]
[342114231,1731462633567,-360.92,0.00014373,2]
[342114233,1731462633577,-827.23623809,0.00014398,2]
[342114235,1731462633586,-379.05,0.00014452,2]
[342114237,1731462633595,-583.056,0.00014515,2]
[342114239,1731462633605,-150.128,0.00014515,2]
[342114241,1731462633614,-1999.99,0.00014515,2]
[342114243,1731462633624,-629.396,0.00014515,2]
[342114246,1731462633637,-1933.022,0.00014515,2]
[342114248,1731462633652,-1263.124,0.00014515,2]
[342114250,1731462633661,-814.0,0.00014515,2]
[342114251,1731462633670,-1034.651,0.00014515,2]
[342114253,1731462633680,-716.672,0.00014515,2]
[342114256,1731462633690,-3745.0,0.00014515,2]
[342114257,1731462633699,-1043.34224237,0.00014515,2]
[342114260,1731462633711,-1665.93206113,0.00014515,2]
[342114277,1731462633867,-1571.04711358,0.00014515,2]
[342114357,1731462637955,-7726.02658292,0.00014515,2]
[342114358,1731462637964,-150.085,0.00014515,2]
[342114359,1731462637974,-151.337,0.00014515,2]
[342114360,1731462637986,-150.0,0.00014515,2]
[342114361,1731462637996,-41037.0,0.00014526,2]
[342114362,1731462638005,-426.41767423,0.00014689,2]
[342114363,1731462638017,-150.0,0.00014744,2]
[342114364,1731462638030,-150.0,0.00014748,2]
[342114365,1731462638042,-150.0,0.00014767,2]
[342114366,1731462638053,-165.5782,0.0001478,2]
[342114367,1731462638063,-150.0,0.00014783,2]
[342114368,1731462638074,-150.0,0.00014789,2]
[342114369,1731462638084,-559.13030045,0.000148,2]
[342114370,1731462638094,-150.0,0.00014805,2]
[342114371,1731462638105,-27.34263754,0.00014805,2]
[342114373,1731462638772,-122.65736246,0.00014805,2]
[342114374,1731462638781,-150.0,0.00014807,2]
[342114375,1731462638791,-150.0,0.00014812,2]
[342114376,1731462638801,-150.0,0.00014813,2]
[342114377,1731462638810,-150.0,0.0001482,2]
[342114378,1731462638820,-150.0,0.00014821,2]
[342114379,1731462638829,-135.87043207,0.00014823,2]
[342114380,1731462639908,-36.21872772,0.00014823,2]
[342114381,1731462639917,-1500.0,0.0001483,2]
[342114382,1731462639926,-150.0,0.00014843,2]
[342114383,1731462639935,-229.70472121,0.00014843,2]
[342114384,1731462639944,-150.0,0.00014849,2]
[342114385,1731462639954,-150.0,0.0001486,2]
[342114386,1731462639963,-292.58665324,0.0001487,2]
[342114387,1731462639972,-203.8761,0.0001487,2]
[342114388,1731462639982,-1001.7049,0.0001487,2]
[342114389,1731462639991,-167.5978,0.0001487,2]
[342114390,1731462640000,-14810.1256,0.0001487,2]
[342114391,1731462640010,-5000.0,0.0001487,2]
[342114392,1731462640019,-261.64795603,0.00014874,2]
[342114393,1731462640030,-30.93869721,0.00014874,2]
[342114394,1731462640039,-150.0,0.00014878,2]
[342114395,1731462640049,-292.58665324,0.00014879,2]
[342114396,1731462640058,-524.92464955,0.0001488,2]
[342114397,1731462640069,-5993.57245897,0.0001488,2]
[342114398,1731462640080,-330.38098002,0.0001488,2]
[342114415,1731462643519,-150.0,0.00014515,2]
[342114417,1731462643528,-1319.18724605,0.0001488,2]
[342114423,1731462643567,-70.8707359,0.0001488,2]
[342114428,1731462643606,-25.6182698,0.0001488,2]
[342114453,1731462643876,-5905.34427668,0.0001488,2]
[342114454,1731462643890,-4949.9999972,0.0001488,2]
[342114455,1731462643901,-2169.06622502,0.0001488,2]
[342114456,1731462644011,-2703.23716081,0.0001488,2]
[342114457,1731462644020,-8729.4111,0.0001488,2]
[342114458,1731462644029,-150.0,0.0001488,2]
[342114459,1731462644038,-150.0,0.0001488,2]
[342114460,1731462644047,-292.58665324,0.00014883,2]
[342114461,1731462644057,-292.58665324,0.00014887,2]
[342114462,1731462644067,-285.59,0.00014889,3]
[342114463,1731462644076,-163.940486,0.0001489,2]
[342114464,1731462644085,-174.58414552,0.0001489,2]
[342114465,1731462644095,-566.4659858,0.0001489,2]
[342114466,1731462644104,-292.58665324,0.00014891,2]
[342114467,1731462644113,-174.5841455,0.00014892,2]
[342114468,1731462644122,-174.5841455,0.00014894,2]
[342114469,1731462644131,-566.46598578,0.00014895,2]
[342114470,1731462644142,-292.58665324,0.00014896,2]
[342114471,1731462644151,-174.5841455,0.00014896,2]
[342114472,1731462644161,-174.5841455,0.00014898,2]
[342114473,1731462644170,-1248.22,0.00014899,2]
[342114474,1731462644179,-5800.0,0.000149,2]
[342114475,1731462644188,-174.5841455,0.000149,2]
[342114476,1731462644197,-1006.0,0.000149,2]
[342114477,1731462644206,-292.58665324,0.000149,2]
[342114478,1731462644215,-566.46598578,0.000149,2]
[342114479,1731462644224,-150.0,0.00014902,2]
[342114480,1731462644234,-1518.67906747,0.00014903,2]
[342114481,1731462644247,-150.0,0.00014905,2]
[342114482,1731462644257,-150.0,0.0001491,2]
[342114483,1731462644266,-150.0,0.00014916,2]
[342114484,1731462644276,-150.0,0.00014919,2]
[342114485,1731462644287,-150.0,0.00014935,2]
[342114486,1731462644297,-150.0,0.00014947,2]
[342114487,1731462644307,-150.0,0.00014951,2]
[342114488,1731462644319,-150.0,0.00014956,2]
[342114489,1731462644329,-177.30645593,0.0001496,2]
[342114490,1731462644338,-150.0,0.00014962,2]
[342114491,1731462644348,-2691.70714375,0.00014967,7]
[342114492,1731462644357,-150.0,0.00014968,2]
[342114493,1731462644367,-150.0,0.00014969,2]
[342114494,1731462644377,-148061.03007988,0.0001497,2]
[342114495,1731462644386,-3064.37835689,0.0001497,2]
[342114496,1731462644399,-128334.79658768,0.0001497,2]
[342114533,1731462646563,-150.0,0.00014726,2]
[342114535,1731462646572,-150.0,0.00014752,2]
[342114537,1731462646583,-44.22001004,0.0001497,2]
[342114540,1731462646606,-103.50871387,0.0001497,2]
[342114542,1731462646618,-540.71569304,0.0001497,2]
[342114545,1731462646629,-205.49649855,0.0001497,2]
[342114547,1731462646644,-260202.21788623,0.0001497,2]
[342114549,1731462646654,-627.11336862,0.0001497,2]
[342114551,1731462646663,-150.0,0.0001497,2]
[342114553,1731462646673,-3000.0,0.0001497,2]
[342114555,1731462646683,-1400.0,0.00014972,2]
[342114557,1731462646692,-700.0,0.00014972,2]
[342114559,1731462646703,-1400.0,0.00014972,2]
[342114561,1731462646713,-323.33690313,0.00014973,2]
[342114563,1731462646722,-502.46337783,0.00014973,2]
[342114565,1731462646732,-150.0,0.00014977,2]
[342114567,1731462646741,-61608.30715286,0.0001498,2]
[342114569,1731462646749,-1452.0,0.0001498,2]
[342114571,1731462646758,-150.0,0.00014982,2]
[342114573,1731462646765,-150.0,0.00014986,2]
[342114575,1731462646774,-252.6939777,0.00014988,2]
[342114577,1731462646782,-816.77,0.00014989,2]
[342114579,1731462646790,-695.7141126,0.00014989,2]
[342114581,1731462646799,-300.0,0.00014989,2]
[342114583,1731462646809,-500.0,0.00014989,2]
[342114585,1731462646818,-177.15972579,0.00014989,2]
[342114587,1731462646829,-174.01180805,0.00014989,2]
[342114589,1731462646840,-500.0,0.00014989,2]
[342114591,1731462646849,-156.23241468,0.00014989,2]
[342114593,1731462646859,-500.0,0.00014989,2]
[342114595,1731462646869,-500.0,0.00014989,2]